fUST/lending_fUST_20250317
["ID","MTS","AMOUNT","RATE_DAILY","PERIOD"]
[356290065,1742194246995,-504.96811806,8.219e-05,2]
[356290066,1742194247006,-1678.31,8.219e-05,2]
[356290067,1742194247015,-500.0,8.219e-05,2]
[356290068,1742194247025,-1537.89,8.219e-05,2]
[356290069,1742194247034,-505.53,8.219e-05,2]
[356290070,1742194247044,-9282.94,8.219e-05,2]
[356290071,1742194247053,-500.0,8.219e-05,2]
[356290072,1742194247063,-500.0,8.219e-05,2]
[356290073,1742194247073,-1535.24,8.219e-05,2]
[356290074,1742194247082,-500.0,8.219e-05,2]
[356290075,1742194247092,-500.0,8.219e-05,2]
[356290076,1742194247102,-503.6909243,8.219e-05,2]
[356290077,1742194247111,-521.81155444,8.219e-05,2]
[356290078,1742194247121,-500.0,8.219e-05,2]
[356290079,1742194247130,-891.6,8.219e-05,2]
[356290080,1742194247140,-512.21450616,8.219e-05,2]
[356290081,1742194247150,-500.0,8.219e-05,2]
[356290082,1742194247159,-516.20668695,8.219e-05,2]
[356290083,1742194247169,-1040.57,8.219e-05,2]
[356290084,1742194247178,-503.29787929,8.219e-05,2]
[356290085,1742194247187,-500.0,8.219e-05,2]
[356290086,1742194247197,-2135.47,8.219e-05,2]
[356290087,1742194247207,-500.0,8.219e-05,2]
[356290088,1742194247216,-500.0,8.219e-05,2]
[356290089,1742194247226,-80256.52,8.219e-05,2]
[356290090,1742194247235,-500.0,8.219e-05,2]
[356290091,1742194247245,-500.0,8.219e-05,2]
[356290092,1742194247255,-500.0,8.219e-05,2]
[356290093,1742194247269,-500.0,8.219e-05,2]
[356290094,1742194247278,-519.27665908,8.219e-05,2]
[356290095,1742194247288,-514.14057928,8.219e-05,2]
[356290096,1742194247298,-500.0,8.219e-05,2]
[356290097,1742194247308,-500.0,8.219e-05,2]
[356290098,1742194247318,-6900.7,8.219e-05,2]
[356290099,1742194247327,-500.0,8.219e-05,2]
[356290100,1742194247338,-2872.17,8.219e-05,2]
[356290101,1742194247347,-500.0,8.219e-05,2]
[356290102,1742194247358,-513.08952607,8.219e-05,2]
[356290103,1742194247367,-500.0,8.219e-05,2]
[356290104,1742194247376,-500.0,8.219e-05,2]
[356290105,1742194247386,-500.0,8.219e-05,2]
[356290106,1742194247395,-500.0,8.219e-05,2]
[356290107,1742194247405,-500.0,8.219e-05,2]
[356290108,1742194247415,-4572.06,8.219e-05,2]
[356290109,1742194247425,-150.29,8.219e-05,2]
[356290110,1742194247434,-500.0,8.219e-05,2]
[356290111,1742194247443,-500.0,8.219e-05,2]
[356290112,1742194247453,-2466.2,8.219e-05,2]
[356290113,1742194247462,-500.0,8.219e-05,2]
[356290114,1742194247471,-700.64,8.219e-05,2]
[356290115,1742194247480,-500.0,8.219e-05,2]
[356290116,1742194247489,-703.94,8.219e-05,2]
[356290117,1742194247499,-500.0,8.219e-05,2]
[356290118,1742194247508,-460.53294892,8.219e-05,2]
[356290119,1742194247518,-500.0,8.219e-05,2]
[356290120,1742194247528,-660.57,8.219e-05,2]
[356290121,1742194247538,-500.0,8.219e-05,2]
[356290122,1742194247548,-581.1,8.219e-05,2]
[356290123,1742194247558,-510.32841873,8.219e-05,2]
[356290124,1742194247567,-500.0,8.219e-05,2]
[356290125,1742194247577,-3380.61,8.219e-05,2]
[356290126,1742194247587,-503.44495031,8.219e-05,2]
[356290127,1742194247597,-500.0,8.219e-05,2]
[356290128,1742194247607,-500.0,8.219e-05,2]
[356290129,1742194247616,-968.04,8.219e-05,2]
[356290130,1742194247626,-636.47,8.219e-05,2]
[356290131,1742194247636,-499.59086638,8.219e-05,2]
[356290132,1742194247646,-500.0,8.219e-05,2]
[356290133,1742194247655,-509.36728492,8.219e-05,2]
[356290134,1742194247665,-513.57767782,8.219e-05,2]
[356290135,1742194247675,-500.0,8.219e-05,2]
[356290136,1742194247685,-506.03220582,8.219e-05,2]
[356290137,1742194247694,-992.27,8.219e-05,2]
[356290138,1742194247704,-500.0,8.219e-05,2]
[356290139,1742194247714,-500.0,8.219e-05,2]
[356290140,1742194247724,-505.2509357,8.219e-05,2]
[356290141,1742194247734,-500.0,8.219e-05,2]
[356290142,1742194247747,-306.2692647,8.219e-05,2]
[356290143,1742194247761,-500.0,8.219e-05,2]
[356290144,1742194247774,-500.0,8.219e-05,2]
[356290145,1742194247787,-500.0,8.219e-05,2]
[356290146,1742194247801,-500.0,8.219e-05,2]
[356290147,1742194247812,-2083.06,8.219e-05,2]
[356290148,1742194247823,-500.0,8.219e-05,2]
[356290149,1742194247835,-506.92230272,8.219e-05,2]
[356290150,1742194247848,-901.81,8.219e-05,2]
[356290151,1742194247860,-901.81,8.219e-05,2]
[356290152,1742194247873,-901.81,8.219e-05,2]
[356290153,1742194247885,-511.41569245,8.219e-05,2]
[356290154,1742194247898,-901.81,8.219e-05,2]
[356290155,1742194247911,-901.81,8.219e-05,2]
[356290156,1742194247922,-901.81,8.219e-05,2]
[356290157,1742194247934,-901.81,8.219e-05,2]
[356290158,1742194247947,-500.0,8.219e-05,2]
[356290159,1742194247960,-901.81,8.219e-05,2]
[356290160,1742194247973,-500.0,8.219e-05,2]
[356290161,1742194247985,-901.81,8.219e-05,2]
[356290162,1742194247997,-901.81,8.219e-05,2]
[356290163,1742194248009,-901.81,8.219e-05,2]
[356290164,1742194248021,-901.81,8.219e-05,2]
[356290165,1742194248032,-901.81,8.219e-05,2]
[356290166,1742194248045,-901.81,8.219e-05,2]
[356290167,1742194248058,-901.81,8.219e-05,2]
[356290168,1742194248071,-500.0,8.219e-05,2]
[356290169,1742194248083,-901.81,8.219e-05,2]
[356290170,1742194248095,-901.81,8.219e-05,2]
[356290171,1742194248106,-901.81,8.219e-05,2]
[356290172,1742194248116,-901.81,8.219e-05,2]
[356290173,1742194248128,-901.81,8.219e-05,2]
[356290174,1742194248140,-901.81,8.219e-05,2]
[356290175,1742194248151,-500.0,8.219e-05,2]
[356290176,1742194248163,-901.81,8.219e-05,2]
[356290177,1742194248176,-500.0,8.219e-05,2]
[356290178,1742194248188,-901.81,8.219e-05,2]
[356290179,1742194248201,-151.0,8.219e-05,2]
[356290180,1742194248213,-151.0,8.219e-05,2]
[356290181,1742194248225,-151.0,8.219e-05,2]
[356290182,1742194248238,-151.0,8.219e-05,2]
[356290183,1742194248251,-151.0,8.219e-05,2]
[356290184,1742194248267,-151.0,8.219e-05,2]
[356290185,1742194248281,-261.203005,8.219e-05,2]
[356290186,1742194248291,-151.0,8.219e-05,2]
[356290187,1742194248303,-166.427646,8.219e-05,2]
[356290188,1742194248313,-199.44733211,8.246e-05,2]
[356290189,1742194248324,-150.29,8.246e-05,2]
[356290190,1742194248336,-156.587,8.269e-05,2]
[356290191,1742194248348,-150.29,8.274e-05,2]
[356290192,1742194248361,-500.000001,8.298e-05,2]
[356290193,1742194248375,-188.03467893,8.301e-05,2]
[356290194,1742194248388,-278.01943339,8.316e-05,2]
[356290195,1742194248399,-160.0,8.316e-05,2]
[356290196,1742194248410,-160.0,8.316e-05,2]
[356290197,1742194248421,-833.89138366,8.316e-05,2]
[356290198,1742194248432,-417.81762827,8.316e-05,2]
[356290199,1742194248443,-160.0,8.316e-05,2]
[356290200,1742194248456,-150.71,8.323e-05,2]
[356290201,1742194248469,-1915.0,8.323e-05,2]
[356290202,1742194248479,-2267.0,8.323e-05,2]
[356290203,1742194248490,-541.0,8.323e-05,2]
[356290204,1742194248500,-182.225,8.323e-05,2]
[356290205,1742194248511,-162.380719,8.324e-05,2]
[356290206,1742194248522,-500.0,8.338e-05,2]
[356290207,1742194248534,-168.3888056,8.379e-05,2]
[356290208,1742194248545,-810.74292333,8.412e-05,2]
[356290209,1742194248556,-174.61919141,8.434e-05,2]
[356290210,1742194248567,-304.72356344,8.473e-05,2]
[356290211,1742194248578,-504.93805266,8.473e-05,2]
[356290212,1742194248589,-206.29290413,8.473e-05,2]
[356290213,1742194248600,-501.6156919,8.473e-05,2]
[356290214,1742194248611,-500.17844841,8.473e-05,2]
[356290215,1742194248622,-536.58115171,8.473e-05,2]
[356290216,1742194248633,-160.5203753,8.473e-05,2]
[356290217,1742194248644,-502.37127078,8.473e-05,2]
[356290218,1742194248655,-501.29764688,8.473e-05,2]
[356290219,1742194248666,-500.0,8.473e-05,2]
[356290220,1742194248677,-503.43024209,8.473e-05,2]
[356290221,1742194248688,-210.63563,8.473e-05,2]
[356290222,1742194248699,-500.35503324,8.473e-05,2]
[356290223,1742194248710,-163.47692115,8.473e-05,2]
[356290224,1742194248721,-500.61571288,8.473e-05,2]
[356290225,1742194248733,-500.8199115,8.473e-05,2]
[356290226,1742194248745,-155.88328102,8.473e-05,2]
[356290227,1742194248756,-500.44682408,8.473e-05,2]
[356290228,1742194248767,-500.39347086,8.473e-05,2]
[356290229,1742194248780,-500.0,8.473e-05,2]
[356290230,1742194248792,-500.0,8.473e-05,2]
[356290231,1742194248804,-269.61878487,8.473e-05,2]
[356290232,1742194248815,-474.03324091,8.473e-05,2]
[356290233,1742194248826,-500.79367618,8.473e-05,2]
[356290234,1742194248837,-194.89259836,8.473e-05,2]
[356290235,1742194248848,-500.0,8.473e-05,2]
[356290236,1742194248859,-252.47754807,8.473e-05,2]
[356290237,1742194248870,-154.23051051,8.473e-05,2]
[356290238,1742194248881,-417.92320585,8.473e-05,2]
[356290239,1742194248892,-500.0,8.473e-05,2]
[356290240,1742194248903,-211.01568457,8.473e-05,2]
[356290241,1742194248914,-500.39407466,8.473e-05,2]
[356290242,1742194248925,-500.71095739,8.473e-05,2]
[356290243,1742194248936,-291.49352672,8.473e-05,2]
[356290244,1742194248946,-500.93635601,8.473e-05,2]
[356290245,1742194248957,-163.19126213,8.473e-05,2]
[356290246,1742194248968,-503.72765559,8.473e-05,2]
[356290247,1742194248979,-155.779,8.473e-05,2]
[356290248,1742194248990,-181.08010149,8.489e-05,2]
[356290249,1742194249001,-520.83155908,8.493e-05,2]
[356290250,1742194249012,-500.0,8.493e-05,2]
[356290251,1742194249023,-463.18913352,8.493e-05,2]
[356290252,1742194249034,-509.39496684,8.493e-05,2]
[356290253,1742194249046,-501.94051116,8.493e-05,2]
[356290254,1742194249056,-520.41099284,8.493e-05,2]
[356290255,1742194249067,-508.4784844,8.493e-05,2]
[356290256,1742194249078,-511.33746973,8.493e-05,2]
[356290257,1742194249089,-501.3841117,8.493e-05,2]
[356290258,1742194249100,-524.31683965,8.493e-05,2]
[356290259,1742194249111,-500.0,8.493e-05,2]
[356290260,1742194249122,-600.24939696,8.493e-05,2]
[356290261,1742194249132,-518.5531909,8.493e-05,2]
[356290262,1742194249143,-512.90628817,8.493e-05,2]
[356290263,1742194249155,-511.96536585,8.493e-05,2]
[356290264,1742194249166,-500.0,8.493e-05,2]
[356290265,1742194249177,-506.86754617,8.493e-05,2]
[356290266,1742194249188,-506.61040744,8.493e-05,2]
[356290267,1742194249199,-500.0,8.493e-05,2]
[356290268,1742194249210,-511.49206708,8.493e-05,2]
[356290269,1742194249221,-500.0,8.493e-05,2]
[356290270,1742194249232,-500.0,8.493e-05,2]
[356290271,1742194249243,-526.12544788,8.493e-05,2]
[356290272,1742194249255,-534.50236144,8.493e-05,2]
[356290273,1742194249269,-505.15261029,8.493e-05,2]
[356290274,1742194249280,-505.82941845,8.493e-05,2]
[356290275,1742194249292,-624.35786842,8.493e-05,2]
[356290276,1742194249303,-500.0,8.493e-05,2]
[356290277,1742194249316,-518.20201797,8.493e-05,2]
[356290278,1742194249327,-500.0,8.493e-05,2]
[356290279,1742194249339,-500.0,8.493e-05,2]
[356290280,1742194249351,-500.0,8.493e-05,2]
[356290281,1742194249362,-500.0,8.493e-05,2]
[356290282,1742194249372,-500.0,8.493e-05,2]
[356290283,1742194249384,-500.0,8.493e-05,2]
[356290284,1742194249395,-500.0,8.493e-05,2]
[356290285,1742194249405,-500.0,8.493e-05,2]
[356290286,1742194249416,-529.17526713,8.493e-05,2]
[356290287,1742194249427,-500.0,8.493e-05,2]
[356290288,1742194249439,-500.0,8.493e-05,2]
[356290289,1742194249449,-500.0,8.493e-05,2]
[356290290,1742194249460,-500.0,8.493e-05,2]
[356290291,1742194249471,-573.63,8.493e-05,2]
[356290292,1742194249482,-500.0,8.493e-05,2]
[356290293,1742194249494,-500.0,8.493e-05,2]
[356290294,1742194249507,-500.0,8.493e-05,2]
[356290295,1742194249518,-500.0,8.493e-05,2]
[356290296,1742194249529,-500.0,8.493e-05,2]
[356290297,1742194249540,-500.0,8.493e-05,2]
[356290298,1742194249551,-500.0,8.493e-05,2]
[356290299,1742194249562,-500.0,8.493e-05,2]
[356290300,1742194249573,-500.0,8.493e-05,2]
[356290301,1742194249583,-500.0,8.493e-05,2]
[356290302,1742194249594,-500.0,8.493e-05,2]
[356290303,1742194249605,-539.82,8.493e-05,2]
[356290304,1742194249616,-671.47,8.493e-05,2]
[356290305,1742194249627,-500.0,8.493e-05,2]
[356290306,1742194249639,-512.10483059,8.493e-05,2]
[356290307,1742194249651,-500.0,8.493e-05,2]
[356290308,1742194249663,-500.0,8.493e-05,2]
[356290309,1742194249674,-500.0,8.493e-05,2]
[356290310,1742194249685,-500.0,8.493e-05,2]
[356290311,1742194249696,-500.0,8.493e-05,2]
[356290312,1742194249707,-500.0,8.493e-05,2]
[356290313,1742194249718,-233.06783296,8.493e-05,2]
[356290314,1742194249729,-500.0,8.493e-05,2]
[356290315,1742194249740,-500.0,8.493e-05,2]
[356290316,1742194249958,-500.0,8.493e-05,2]
[356290317,1742194249979,-520.44539727,8.493e-05,2]
[356290318,1742194249992,-517.89952097,8.493e-05,2]
[356290319,1742194250002,-153.58522141,8.493e-05,2]
[356290320,1742194250012,-500.0,8.493e-05,2]
[356290321,1742194250022,-500.0,8.493e-05,2]
[356290322,1742194250031,-500.0,8.493e-05,2]
[356290323,1742194250040,-500.0,8.493e-05,2]
[356290324,1742194250050,-500.0,8.493e-05,2]
[356290325,1742194250059,-500.0,8.493e-05,2]
[356290326,1742194250069,-500.0,8.493e-05,2]
[356290327,1742194250078,-500.0,8.493e-05,2]
[356290328,1742194250087,-500.0,8.493e-05,2]
[356290329,1742194250097,-500.0,8.493e-05,2]
[356290330,1742194250106,-500.0,8.493e-05,2]
[356290331,1742194250116,-319.24676004,8.493e-05,2]
[356290332,1742194250125,-508.95809241,8.493e-05,2]
[356290333,1742194250135,-500.0,8.493e-05,2]
[356290334,1742194250144,-500.0,8.493e-05,2]
[356290335,1742194250153,-548.6977891,8.493e-05,2]
[356290336,1742194250163,-500.0,8.493e-05,2]
[356290337,1742194250172,-500.0,8.493e-05,2]
[356290338,1742194250182,-500.0,8.493e-05,2]
[356290339,1742194250191,-500.0,8.493e-05,2]
[356290340,1742194250202,-500.0,8.493e-05,2]
[356290341,1742194250211,-500.0,8.493e-05,2]
[356290342,1742194250221,-506.99861215,8.493e-05,2]
[356290343,1742194250230,-500.0,8.493e-05,2]
[356290344,1742194250240,-500.0,8.493e-05,2]
[356290345,1742194250250,-500.0,8.493e-05,2]
[356290346,1742194250262,-500.0,8.493e-05,2]
[356290347,1742194250272,-528.03226621,8.493e-05,2]
[356290348,1742194250282,-500.0,8.493e-05,2]
[356290349,1742194250291,-514.34288046,8.493e-05,2]
[356290350,1742194250301,-500.0,8.493e-05,2]
[356290351,1742194250314,-500.0,8.493e-05,2]
[356290352,1742194250324,-500.0,8.493e-05,2]
[356290353,1742194250335,-500.0,8.493e-05,2]
[356290354,1742194250345,-620.86,8.493e-05,2]
[356290355,1742194250354,-4828.53,8.493e-05,2]
[356290356,1742194250364,-500.0,8.493e-05,2]
[356290357,1742194250374,-500.0,8.493e-05,2]
[356290358,1742194250383,-500.0,8.493e-05,2]
[356290359,1742194250393,-500.0,8.493e-05,2]
[356290360,1742194250403,-617.71,8.493e-05,2]
[356290361,1742194250412,-500.0,8.493e-05,2]
[356290362,1742194250422,-518.93883208,8.493e-05,2]
[356290363,1742194250431,-500.0,8.493e-05,2]
[356290364,1742194250441,-512.29682908,8.493e-05,2]
[356290365,1742194250451,-558.27,8.493e-05,2]
[356290366,1742194250460,-170.58373355,8.493e-05,2]
[356290367,1742194250470,-500.0,8.493e-05,2]
[356290368,1742194250480,-1214.44,8.493e-05,2]
[356290369,1742194250489,-500.0,8.493e-05,2]
[356290370,1742194250499,-500.0,8.493e-05,2]
[356290371,1742194250508,-500.0,8.493e-05,2]
[356290372,1742194250517,-500.0,8.493e-05,2]
[356290373,1742194250527,-2133.34,8.493e-05,2]
[356290374,1742194250537,-2860.57,8.493e-05,2]
[356290375,1742194250547,-4056.69,8.493e-05,2]
[356290376,1742194250557,-500.0,8.493e-05,2]
[356290377,1742194250567,-6422.88,8.493e-05,2]
[356290378,1742194250576,-2132.27,8.493e-05,2]
[356290379,1742194250586,-500.0,8.493e-05,2]
[356290380,1742194250596,-500.0,8.493e-05,2]
[356290381,1742194250606,-516.41826006,8.493e-05,2]
[356290382,1742194250615,-278.41327305,8.493e-05,2]
[356290383,1742194250626,-521.20407979,8.493e-05,2]
[356290384,1742194250635,-526.73459965,8.493e-05,2]
[356290385,1742194250645,-1678.31,8.493e-05,2]
[356290386,1742194250655,-514.39401402,8.493e-05,2]
[356290387,1742194250665,-1537.89,8.493e-05,2]
[356290388,1742194250675,-505.53,8.493e-05,2]
[356290389,1742194250684,-9282.94,8.493e-05,2]
[356290390,1742194250694,-500.0,8.493e-05,2]
[356290391,1742194250704,-511.01069018,8.493e-05,2]
[356290392,1742194250714,-1535.24,8.493e-05,2]
[356290393,1742194250724,-500.0,8.493e-05,2]
[356290394,1742194250734,-511.4950474,8.493e-05,2]
[356290395,1742194250744,-521.50278786,8.493e-05,2]
[356290396,1742194250754,-891.6,8.493e-05,2]
[356290397,1742194250763,-500.0,8.493e-05,2]
[356290398,1742194250772,-1040.57,8.493e-05,2]
[356290399,1742194250781,-500.29334624,8.493e-05,2]
[356290400,1742194250791,-2135.47,8.493e-05,2]
[356290401,1742194250800,-516.45945172,8.493e-05,2]
[356290402,1742194250810,-500.0,8.493e-05,2]
[356290403,1742194250819,-80256.52,8.493e-05,2]
[356290404,1742194250830,-515.4539054,8.493e-05,2]
[356290405,1742194250840,-500.0,8.493e-05,2]
[356290406,1742194250849,-500.0,8.493e-05,2]
[356290407,1742194250859,-500.0,8.493e-05,2]
[356290408,1742194250869,-500.0,8.493e-05,2]
[356290409,1742194250878,-6900.7,8.493e-05,2]
[356290410,1742194250888,-2872.17,8.493e-05,2]
[356290411,1742194250897,-500.0,8.493e-05,2]
[356290412,1742194250907,-500.0,8.493e-05,2]
[356290413,1742194250917,-500.0,8.493e-05,2]
[356290414,1742194250926,-500.0,8.493e-05,2]
[356290415,1742194250936,-500.0,8.493e-05,2]
[356290416,1742194250945,-515.04,8.493e-05,2]
[356290417,1742194250955,-4572.06,8.493e-05,2]
[356290418,1742194250965,-526.20325681,8.493e-05,2]
[356290419,1742194250975,-514.66801882,8.493e-05,2]
[356290420,1742194250984,-2466.2,8.493e-05,2]
[356290421,1742194250994,-500.0,8.493e-05,2]
[356290422,1742194251004,-700.64,8.493e-05,2]
[356290423,1742194251014,-640.00508743,8.493e-05,2]
[356290424,1742194251024,-703.94,8.493e-05,2]
[356290425,1742194251035,-336.12897917,8.493e-05,2]
[356290426,1742194251045,-500.0,8.493e-05,2]
[356290427,1742194251056,-660.57,8.493e-05,2]
[356290428,1742194251065,-504.0243876,8.493e-05,2]
[356290429,1742194251074,-581.1,8.493e-05,2]
[356290430,1742194251084,-500.28328327,8.493e-05,2]
[356290431,1742194251093,-3380.61,8.493e-05,2]
[356290432,1742194251103,-500.0,8.493e-05,2]
[356290433,1742194251113,-810.74292333,8.493e-05,2]
[356290434,1742194251123,-500.33739645,8.493e-05,2]
[356290435,1742194251132,-968.04,8.493e-05,2]
[356290436,1742194251141,-636.47,8.493e-05,2]
[356290437,1742194251150,-511.85313018,8.493e-05,2]
[356290438,1742194251159,-515.17739955,8.493e-05,2]
[356290439,1742194251168,-992.27,8.493e-05,2]
[356290440,1742194251178,-283.87685365,8.493e-05,2]
[356290441,1742194251187,-500.0,8.493e-05,2]
[356290442,1742194251196,-500.0,8.493e-05,2]
[356290443,1742194251206,-518.60442019,8.493e-05,2]
[356290444,1742194251215,-335.28708092,8.493e-05,2]
[356290445,1742194251224,-505.72220123,8.493e-05,2]
[356290446,1742194251234,-500.0,8.493e-05,2]
[356290447,1742194251244,-2083.06,8.493e-05,2]
[356290448,1742194251254,-500.0,8.493e-05,2]
[356290449,1742194251266,-501.80626804,8.493e-05,2]
[356290450,1742194251275,-500.0,8.493e-05,2]
[356290451,1742194251285,-508.72434561,8.493e-05,2]
[356290452,1742194251295,-500.0,8.493e-05,2]
[356290453,1742194251307,-500.0,8.493e-05,2]
[356290454,1742194251316,-1740.93,8.5e-05,2]
[356290455,1742194251326,-187.78006525,8.544e-05,2]
[356290456,1742194251336,-194.72792766,8.599e-05,2]
[356290457,1742194251347,-201.93286099,8.654e-05,2]
[356290458,1742194251356,-1172.62439174,8.676e-05,2]
[356290459,1742194251366,-309.65648719,8.709e-05,2]
[356290460,1742194251376,-500.0,8.767e-05,2]
[356290461,1742194251386,-500.0,8.767e-05,2]
[356290462,1742194251395,-531.44677329,8.767e-05,2]
[356290463,1742194251404,-272.68905135,8.767e-05,2]
[356290464,1742194251414,-522.67636156,8.767e-05,2]
[356290465,1742194251423,-505.4686255,8.767e-05,2]
[356290466,1742194251433,-500.0,8.767e-05,2]
[356290467,1742194251443,-500.0,8.767e-05,2]
[356290468,1742194251452,-500.0,8.767e-05,2]
[356290469,1742194251462,-500.0,8.767e-05,2]
[356290470,1742194251471,-500.0,8.767e-05,2]
[356290471,1742194251480,-512.52343594,8.767e-05,2]
[356290472,1742194251490,-500.0,8.767e-05,2]
[356290473,1742194251499,-500.0,8.767e-05,2]
[356290474,1742194251509,-500.0,8.767e-05,2]
[356290475,1742194251518,-500.0,8.767e-05,2]
[356290476,1742194251527,-500.0,8.767e-05,2]
[356290477,1742194251537,-523.45718883,8.767e-05,2]
[356290478,1742194251548,-573.63,8.767e-05,2]
[356290479,1742194251557,-500.0,8.767e-05,2]
[356290480,1742194251567,-500.0,8.767e-05,2]
[356290481,1742194251577,-500.0,8.767e-05,2]
[356290482,1742194251586,-523.97753815,8.767e-05,2]
[356290483,1742194251595,-398.83565509,8.767e-05,2]
[356290484,1742194251605,-627.41696177,8.767e-05,2]
[356290485,1742194251614,-500.0,8.767e-05,2]
[356290486,1742194251624,-500.0,8.767e-05,2]
[356290487,1742194251633,-500.0,8.767e-05,2]
[356290488,1742194251643,-500.0,8.767e-05,2]
[356290489,1742194251653,-539.82,8.767e-05,2]
[356290490,1742194251663,-671.47,8.767e-05,2]
[356290491,1742194251673,-398.32434028,8.767e-05,2]
[356290492,1742194251683,-500.0,8.767e-05,2]
[356290493,1742194251692,-194.53,8.767e-05,2]
[356290494,1742194251702,-521.76491446,8.767e-05,2]
[356290495,1742194251711,-390.76774329,8.767e-05,2]
[356290496,1742194251721,-500.0,8.767e-05,2]
[356290497,1742194251731,-500.0,8.767e-05,2]
[356290498,1742194251742,-500.0,8.767e-05,2]
[356290499,1742194251752,-511.99905458,8.767e-05,2]
[356290500,1742194251762,-186.97855122,8.767e-05,2]
[356290501,1742194251779,-500.0,8.767e-05,2]
[356290502,1742194251789,-500.0,8.767e-05,2]
[356290503,1742194251800,-500.0,8.767e-05,2]
[356290504,1742194251809,-500.0,8.767e-05,2]
[356290505,1742194251819,-512.84610101,8.767e-05,2]
[356290506,1742194251828,-500.0,8.767e-05,2]
[356290507,1742194251839,-500.0,8.767e-05,2]
[356290508,1742194251848,-500.0,8.767e-05,2]
[356290509,1742194251858,-500.0,8.767e-05,2]
[356290510,1742194251868,-515.0356578,8.767e-05,2]
[356290511,1742194251878,-500.0,8.767e-05,2]
[356290512,1742194251887,-500.0,8.767e-05,2]
[356290513,1742194251897,-500.0,8.767e-05,2]
[356290514,1742194251907,-500.0,8.767e-05,2]
[356290515,1742194251916,-500.0,8.767e-05,2]
[356290516,1742194251926,-500.0,8.767e-05,2]
[356290517,1742194251936,-4828.53,8.767e-05,2]
[356290518,1742194251945,-500.0,8.767e-05,2]
[356290519,1742194251954,-500.0,8.767e-05,2]
[356290520,1742194251964,-500.0,8.767e-05,2]
[356290521,1742194251973,-617.71,8.767e-05,2]
[356290522,1742194251983,-206.2,8.767e-05,2]
[356290523,1742194251993,-558.27,8.767e-05,2]
[356290524,1742194252003,-500.0,8.767e-05,2]
[356290525,1742194252012,-1214.44,8.767e-05,2]
[356290526,1742194252021,-500.0,8.767e-05,2]
[356290527,1742194252031,-2133.34,8.767e-05,2]
[356290528,1742194252040,-2860.57,8.767e-05,2]
[356290529,1742194252050,-4056.69,8.767e-05,2]
[356290530,1742194252060,-500.0,8.767e-05,2]
[356290531,1742194252070,-6422.88,8.767e-05,2]
[356290532,1742194252080,-2132.27,8.767e-05,2]
[356290533,1742194252090,-500.0,8.767e-05,2]
[356290534,1742194252099,-500.0,8.767e-05,2]
[356290535,1742194252109,-1678.31,8.767e-05,2]
[356290536,1742194252118,-1537.89,8.767e-05,2]
[356290537,1742194252128,-505.53,8.767e-05,2]
[356290538,1742194252138,-9282.94,8.767e-05,2]
[356290539,1742194252147,-500.0,8.767e-05,2]
[356290540,1742194252157,-1535.24,8.767e-05,2]
[356290541,1742194252167,-500.0,8.767e-05,2]
[356290542,1742194252176,-891.6,8.767e-05,2]
[356290543,1742194252186,-500.0,8.767e-05,2]
[356290544,1742194252195,-1040.57,8.767e-05,2]
[356290545,1742194252205,-2135.47,8.767e-05,2]
[356290546,1742194252214,-500.0,8.767e-05,2]
[356290547,1742194252224,-80256.52,8.767e-05,2]
[356290548,1742194252233,-500.0,8.767e-05,2]
[356290549,1742194252243,-500.0,8.767e-05,2]
[356290550,1742194252252,-407.68,8.767e-05,2]
[356290551,1742194252266,-6900.7,8.767e-05,2]
[356290552,1742194252276,-2872.17,8.767e-05,2]
[356290553,1742194252285,-500.0,8.767e-05,2]
[356290554,1742194252295,-500.0,8.767e-05,2]
[356290555,1742194252306,-562.24414835,8.767e-05,2]
[356290556,1742194252315,-500.0,8.767e-05,2]
[356290557,1742194252325,-4572.06,8.767e-05,2]
[356290558,1742194252335,-2466.2,8.767e-05,2]
[356290559,1742194252345,-500.0,8.767e-05,2]
[356290560,1742194252355,-700.64,8.767e-05,2]
[356290561,1742194252365,-703.94,8.767e-05,2]
[356290562,1742194252375,-500.0,8.767e-05,2]
[356290563,1742194252385,-660.57,8.767e-05,2]
[356290564,1742194252394,-581.1,8.767e-05,2]